bitfinex/quotes_SOLUSD_20260223
["timestamp","ask_amount","ask_price","bid_price","bid_amount"]
[1771825903321,1.40886312,77.677,77.644,1.42055891]
[1771825903724,1.40886312,77.669,77.643,12.87946112]
[1771825904709,1.40886312,77.668,77.64,1.42055891]
[1771825906842,1.40886312,77.668,77.641,12.87979289]
[1771825907136,1.40886312,77.668,77.641,14.3003518]
[1771825907308,1.40886312,77.666,77.641,14.3003518]
[1771825909113,18.23667466,77.665,77.625,1.42342721]
[1771825909318,1.4694033,77.649,77.613,1.42342721]
[1771825911031,1.4694033,77.649,77.61,5.20264584]
[1771825911032,1.4694033,77.647,77.615,1.42342721]
[1771825914118,1.4694033,77.639,77.617,1.42342721]
[1771825914622,5.10264584,77.65,77.618,1.42342721]
[1771825916233,5.10264584,77.65,77.619,12.88344348]
[1771825916431,5.10264584,77.65,77.62,1.42342721]
[1771825916638,1.4694033,77.649,77.62,1.42342721]
[1771825917139,5.36086188,77.668,77.62,1.42342721]
[1771825917140,1.4694033,77.659,77.621,1.42342721]
[1771825918038,1.4694033,77.659,77.631,1.42342721]
[1771825918418,1.4694033,77.659,77.633,1.42342721]
[1771825919234,1.4694033,77.67,77.633,1.42342721]
[1771825919538,5.10264584,77.67,77.641,1.42342721]
[1771825919739,1.4694033,77.669,77.641,1.42342721]
[1771825920324,5.10264584,77.65,77.634,1.42342721]
[1771825920533,1.4694033,77.649,77.632,12.88128606]
[1771825920731,1.4694033,77.649,77.614,32.21058342]
[1771825920918,1.4694033,77.639,77.615,12.88410745]
[1771825921118,1.4694033,77.629,77.61,0.1]
[1771825921623,5.10264584,77.62,77.61,0.1]
[1771825921822,6.57204914,77.62,77.61,0.1]
[1771825922036,1.4694033,77.619,77.61,0.1]
[1771825924942,1.4694033,77.619,77.595,12.88742831]
[1771825925324,1.4694033,77.619,77.563,51.57059779]
[1771825925325,5.10264584,77.6,77.569,1.54235642]
[1771825925725,45.09209822,77.619,77.569,1.54235642]
[1771825926034,5.10264584,77.61,77.571,1.54235642]
[1771825926422,5.36086188,77.618,77.571,1.54235642]
[1771825926622,45.09209822,77.619,77.571,1.54235642]
[1771825926623,12.88348951,77.619,77.571,1.54235642]
[1771825926822,5.10264584,77.62,77.582,1.54235642]
[1771825927241,5.10264584,77.61,77.582,1.54235642]
[1771825928034,0.02397114,77.619,77.582,1.54235642]
[1771825929240,0.03179009,77.626,77.584,1.54235642]
[1771825929424,0.03179009,77.626,77.591,1.54235642]
[1771825930420,0.03179009,77.626,77.593,1.54235642]
[1771825930847,5.10264584,77.62,77.593,1.54235642]
[1771825933245,12.88211575,77.627,77.593,1.54235642]
[1771825933442,12.87999679,77.64,77.601,1.54235642]
[1771825933631,17.98264263,77.64,77.601,1.54235642]
[1771825933831,0.06214544,77.639,77.601,1.54235642]
[1771825935629,0.06214544,77.639,77.603,1.54235642]
[1771825936139,6.57204914,77.61,77.561,12.8930777]
[1771825936344,1.4694033,77.609,77.561,12.8930777]
[1771825936526,1.4694033,77.617,77.564,32.23112147]
[1771825936727,1.4694033,77.617,77.59,5.10264584]
[1771825936944,1.4694033,77.624,77.59,5.10264584]
[1771825937446,1.4694033,77.624,77.58,5.10264584]
[1771825937643,45.07989375,77.64,77.56,5.20264584]
[1771825937644,1.54699027,77.609,77.581,12.88975393]
[1771825937851,1.54699027,77.599,77.561,12.8930777]
[1771825938029,1.54699027,77.599,77.564,32.23131208]
[1771825938229,1.54699027,77.599,77.565,1.46121615]
[1771825938430,5.10264584,77.58,77.56,0.1]
[1771825938631,6.64963611,77.58,77.56,0.1]
[1771825938831,1.54699027,77.58,77.56,0.1]
[1771825939731,5.10264584,77.6,77.561,1.46121615]
[1771825939959,1.54699027,77.611,77.581,1.46121615]
[1771825940581,5.10264584,77.61,77.581,1.46121615]
[1771825940788,1.54699027,77.599,77.571,1.46121615]
[1771825941689,1.54699027,77.599,77.573,1.46121615]
[1771825941878,1.54699027,77.609,77.573,1.46121615]
[1771825942581,1.54699027,77.629,77.591,1.46121615]
[1771825944164,1.54699027,77.629,77.593,1.46121615]
[1771825944482,32.20022071,77.64,77.592,12.88792659]
[1771825944483,5.10264584,77.64,77.601,1.46121615]
[1771825944669,1.54699027,77.639,77.601,1.46121615]
[1771825946680,1.54699027,77.639,77.602,12.88626581]
[1771825946878,1.54699027,77.639,77.603,1.46121615]
[1771825948084,14.42728084,77.638,77.603,1.46121615]
[1771825949292,14.42728084,77.638,77.604,12.88593371]
[1771825949585,1.54699027,77.637,77.605,1.46121615]
[1771825950687,1.54699027,77.629,77.597,12.88696789]
[1771825950868,1.54699027,77.617,77.581,1.46121615]
[1771825951074,5.36086188,77.624,77.581,1.46121615]
[1771825951387,5.36086188,77.624,77.551,3.69383402]
[1771825951388,12.88277958,77.623,77.591,1.46121615]
[1771825951578,1.54699027,77.633,77.591,1.46121615]
[1771825953390,1.54699027,77.629,77.591,1.46121615]
[1771825954992,1.54699027,77.629,77.59,5.10264584]
[1771825954993,1.54699027,77.629,77.593,1.46121615]
[1771825955493,12.88194981,77.628,77.593,1.46121615]
[1771825956194,14.42768693,77.636,77.601,1.46121615]
[1771825956593,1.54699027,77.635,77.601,1.46121615]
[1771825957397,1.54699027,77.635,77.603,1.46121615]
[1771825958891,1.54699027,77.635,77.605,1.46121615]
[1771825959402,5.36086188,77.651,77.583,1.46121615]
[1771825959403,1.54699027,77.619,77.583,1.46121615]
[1771825960094,45.08333977,77.634,77.577,1.46121615]
[1771825960095,1.54699027,77.609,77.577,1.46121615]
[1771825960997,1.54699027,77.607,77.578,14.35146854]
[1771825962881,1.54699027,77.607,77.579,1.46121615]
[1771825963077,1.54699027,77.605,77.579,1.46121615]
[1771825963899,18.03345039,77.642,77.601,1.46121615]
[1771825964092,14.42678316,77.641,77.611,1.46121615]
[1771825964295,64.37774687,77.667,77.58,96.6744006]
[1771825964296,1.54699027,77.706,77.634,1.46121615]
[1771825964488,1e-08,77.72,77.701,1.46121615]
[1771825964688,1e-08,77.74,77.713,1.46121615]
[1771825964885,1.54699027,77.776,77.731,1.46121615]
[1771825965098,1.54699027,77.766,77.732,12.86471466]
[1771825965292,1.54699027,77.774,77.741,1.46121615]
[1771825965601,0.2,77.8,77.761,1.46121615]
[1771825965800,0.2,77.8,77.77,11.36616014]
[1771825966193,12.85363565,77.799,77.77,11.36616014]
[1771825966400,0.2,77.8,77.77,11.36616014]
[1771825967307,0.2,77.8,77.771,14.31947951]
[1771825967509,0.2,77.8,77.772,1.66745801]
[1771825967909,0.2,77.8,77.77,11.36616014]
[1771825967910,1.67846264,77.799,77.75,11.36616014]
[1771825968208,1.67846264,77.774,77.74,11.36616014]
[1771825968580,1.67846264,77.774,77.737,1.66745801]
[1771825969592,1.67846264,77.773,77.741,12.86312675]
[1771825970307,1.67846264,77.766,77.73,11.36616014]
[1771825971186,1.67846264,77.766,77.73,13.03361815]
[1771825971599,5.36086188,77.764,77.73,13.03361815]
[1771825972092,1.67846264,77.766,77.732,1.66745801]
[1771825972295,1.67846264,77.764,77.732,1.66745801]
[1771825974213,1.67846264,77.764,77.74,11.36616014]
[1771825974391,1.67846264,77.784,77.751,1.66745801]
[1771825975507,12.85528802,77.789,77.734,1.66745801]
[1771825975508,1.67846264,77.779,77.734,1.66745801]
[1771825976810,1.67846264,77.779,77.735,45.02476361]
[1771825977000,1.67846264,77.779,77.736,1.66745801]
[1771825977613,1.67846264,77.779,77.741,1.66745801]
[1771825977809,5.36086188,77.788,77.751,1.66745801]
[1771825978030,1.67846264,77.789,77.751,1.66745801]
[1771825980336,7.03932452,77.797,77.753,1.66745801]
[1771825980632,11.56616014,77.8,77.771,1.66745801]
[1771825980633,0.2,77.8,77.771,1.66745801]
[1771825980837,0.2,77.82,77.791,1.66745801]
[1771825981017,1.67846264,77.809,77.77,13.03361815]
[1771825981217,1.67846264,77.799,77.762,1.66745801]
[1771825981418,1.67846264,77.789,77.762,1.66745801]
[1771825981617,1.67846264,77.814,77.771,1.66745801]
[1771825981923,0.2,77.82,77.781,1.66745801]
[1771825982323,1.87846264,77.82,77.783,1.66745801]
[1771825982833,13.24462278,77.82,77.783,1.66745801]
[1771825983133,1.67846264,77.819,77.783,1.66745801]
[1771825984518,1.67846264,77.819,77.784,14.52357237]
[1771825985029,1.67846264,77.817,77.785,1.66745801]
[1771825988236,5.36086188,77.818,77.786,12.85578381]
[1771825988443,1.67846264,77.819,77.786,12.85578381]
[1771825988742,7.03932452,77.818,77.786,12.85578381]
[1771825988935,1.67846264,77.817,77.786,12.85578381]
[1771825989335,1.67846264,77.817,77.787,1.66745801]
[1771825990335,1.67846264,77.817,77.788,12.85545328]
[1771825990536,1.67846264,77.817,77.789,1.66745801]
[1771825991239,0.2,77.82,77.789,1.66745801]
[1771825991754,0.2,77.82,77.791,1.66745801]
[1771825992042,0.2,77.82,77.801,1.66745801]
[1771825992620,0.2,77.82,77.803,1.66745801]
[1771825994632,5.36086188,77.844,77.811,1.66745801]
[1771825994828,1.67846264,77.844,77.811,1.66745801]
[1771825996037,1.67846264,77.844,77.81,11.36616014]
[1771825996038,1.67846264,77.844,77.813,1.66745801]
[1771825997948,1.67846264,77.844,77.814,12.85115788]
[1771825998251,1.67846264,77.844,77.815,1.67054876]
[1771826000347,1.62582242,77.842,77.816,12.85082759]
[1771826000558,1.62582242,77.838,77.816,12.85082759]
[1771826003767,1.62582242,77.838,77.816,1.67054876]
[1771826004468,1.62582242,77.836,77.816,1.67054876]
[1771826005562,5.36086188,77.842,77.816,1.67054876]
[1771826005759,5.36086188,77.842,77.818,1.67054876]
[1771826005953,5.36086188,77.84,77.818,1.67054876]
[1771826006156,6.9866843,77.84,77.818,1.67054876]
[1771826006360,5.36086188,77.845,77.818,1.67054876]
[1771826006661,1.62582242,77.853,77.818,1.67054876]
[1771826006863,5.36086188,77.868,77.841,1.67054876]
[1771826007256,5.36086188,77.871,77.841,1.67054876]
[1771826007470,6.9866843,77.871,77.841,1.67054876]
[1771826007664,6.9866843,77.871,77.842,12.84653528]
[1771826007872,6.9866843,77.871,77.843,1.67054876]
[1771826009067,6.9866843,77.871,77.845,1.67054876]
[1771826010761,6.9866843,77.871,77.847,1.67054876]
[1771826011068,6.9866843,77.871,77.85,11.36616014]
[1771826012568,6.9866843,77.871,77.85,13.0367089]
[1771826013464,5.36086188,77.873,77.851,14.51559891]
[1771826013668,14.46556808,77.884,77.861,1.67054876]
[1771826013871,0.2,77.89,77.87,11.36616014]
[1771826013872,5.36086188,77.889,77.87,11.36616014]
[1771826014864,18.19964527,77.889,77.87,11.36616014]
[1771826015179,18.19964527,77.889,77.866,1.67054876]
[1771826015673,5.36086188,77.889,77.866,14.5130481]
[1771826017378,1.62582242,77.889,77.866,14.5130481]
[1771826017864,1.62582242,77.889,77.867,1.67054876]
[1771826019981,1.62582242,77.889,77.832,51.3921925]
[1771826019982,5.36086188,77.879,77.832,1.67054876]
[1771826020164,1.62582242,77.878,77.841,1.67054876]
[1771826021168,5.36086188,77.883,77.851,1.67054876]
[1771826021679,1.62582242,77.883,77.851,1.67054876]
[1771826022866,1.62582242,77.878,77.853,1.67054876]
[1771826025191,1.62582242,77.877,77.854,12.84455519]
[1771826025388,5.36086188,77.868,77.832,1.67054876]
[1771826025570,1.62582242,77.85,77.82,1.67054876]
[1771826025769,1.62582242,77.848,77.82,1.67054876]
[1771826026489,1.62582242,77.848,77.821,12.85000192]
[1771826026686,1.62582242,77.848,77.822,1.67054876]
[1771826027090,1.62582242,77.875,77.825,1.67054876]
[1771826027287,1.62582242,77.861,77.831,1.67054876]
[1771826027488,1.62582242,77.857,77.825,1.78874677]
[1771826028288,5.36086188,77.875,77.841,1.78874677]
[1771826028478,5.36086188,77.875,77.851,1.78874677]
[1771826028679,5.36086188,77.878,77.853,1.78874677]
[1771826029282,18.20145871,77.878,77.853,1.78874677]
[1771826030494,0.2,77.89,77.852,12.84488516]
[1771826030495,0.2,77.89,77.871,1.78874677]
[1771826030693,0.2,77.89,77.88,11.33411667]
[1771826030996,0.2,77.89,77.875,12.84109149]
[1771826031574,0.2,77.89,77.875,14.62983826]
[1771826031782,1.97716433,77.9,77.875,14.62983826]
[1771826031783,0.2,77.9,77.881,1.78874677]
[1771826033183,1.97716433,77.9,77.874,1.78874677]
[1771826033382,5.36086188,77.897,77.86,11.33411667]
[1771826034098,5.36086188,77.897,77.861,1.78874677]
[1771826034296,5.36086188,77.897,77.87,11.33411667]
[1771826034802,5.36086188,77.895,77.87,11.33411667]
[1771826035899,5.36086188,77.891,77.87,11.33411667]
[1771826037094,1.77716433,77.891,77.87,11.33411667]
[1771826037801,1.77716433,77.896,77.872,1.78874677]
[1771826038101,1.77716433,77.896,77.87,11.33411667]
[1771826039200,1.77716433,77.887,77.85,13.12286344]
[1771826039384,1.77716433,77.877,77.85,13.12286344]
[1771826039704,1.77716433,77.883,77.86,11.33411667]
[1771826040702,5.36086188,77.89,77.863,1.78874677]
[1771826040901,5.36086188,77.892,77.863,1.78874677]
[1771826041097,5.36086188,77.886,77.863,1.78874677]
[1771826041608,5.36086188,77.886,77.86,11.33411667]
[1771826041609,1.77716433,77.877,77.841,1.78874677]
[1771826041815,1.77716433,77.872,77.841,1.78874677]
[1771826042300,1.77716433,77.872,77.851,1.78874677]
[1771826042703,5.36086188,77.874,77.851,1.78874677]
[1771826042909,1.77716433,77.88,77.817,3.69383402]
[1771826042910,1.77716433,77.88,77.86,11.33411667]
[1771826043097,1.77716433,77.88,77.852,12.84488516]
[1771826043098,1.77716433,77.89,77.87,11.33411667]
[1771826043894,1.77716433,77.89,77.855,1.78874677]
[1771826044099,1.77716433,77.879,77.841,1.78874677]
[1771826044797,1.77716433,77.873,77.843,1.78874677]
[1771826045003,1.77716433,77.872,77.843,1.78874677]
[1771826047315,5.36086188,77.869,77.845,1.78874677]
[1771826051125,7.13802621,77.876,77.847,1.78874677]
[1771826051319,5.36086188,77.874,77.847,1.78874677]
[1771826051496,5.36086188,77.872,77.847,1.78874677]
[1771826052620,1.77716433,77.879,77.85,5.07677665]
[1771826052919,1.77716433,77.879,77.851,1.78874677]
[1771826053822,1.77716433,77.878,77.853,1.78874677]
[1771826054124,5.36086188,77.859,77.828,1.78874677]
[1771826054413,5.07677665,77.87,77.831,1.78874677]
[1771826054594,5.36086188,77.869,77.831,1.78874677]
[1771826055097,7.13802621,77.869,77.831,1.78874677]
[1771826055920,1.77716433,77.868,77.833,1.78874677]
[1771826056126,1.77716433,77.868,77.807,3.69383402]
[1771826056127,1.77716433,77.849,77.787,102.84476782]
[1771826056303,1.77716433,77.849,77.804,3.69383402]
[1771826057100,1.77716433,77.849,77.81,5.07677665]
[1771826058118,1.77716433,77.849,77.812,44.9802087]
[1771826059199,1.77716433,77.849,77.813,1.86599398]
[1771826059399,1.71369402,77.858,77.821,1.86599398]
[1771826061322,1.71369402,77.858,77.822,44.97442881]
[1771826061504,1.71369402,77.858,77.823,1.86599398]
[1771826063317,1.71369402,77.865,77.83,5.07677665]
[1771826063519,1.71369402,77.869,77.831,1.86599398]
[1771826064909,1.71369402,77.869,77.833,1.86599398]
[1771826067028,1.71369402,77.893,77.861,1.86599398]
[1771826067215,1.71369402,77.892,77.861,1.86599398]
[1771826068034,1.71369402,77.89,77.863,1.86599398]
[1771826068218,1.71369402,77.888,77.863,1.86599398]
[1771826070533,1.71369402,77.888,77.865,1.86599398]
[1771826072742,1.71369402,77.888,77.867,1.86599398]
[1771826075517,1.71369402,77.888,77.868,12.84224585]
[1771826075717,1.71369402,77.888,77.869,1.86599398]
[1771826079936,1.71369402,77.888,77.871,1.86599398]
[1771826080937,1.71369402,77.888,77.861,1.86599398]
[1771826081550,1.71369402,77.888,77.861,12.84324458]
[1771826082543,1.71369402,77.888,77.861,1.86599398]
[1771826084043,1.71369402,77.888,77.863,1.86599398]
[1771826084541,1.71369402,77.893,77.863,1.86599398]
[1771826084726,1.71369402,77.899,77.871,1.86599398]
[1771826086751,1.71369402,77.899,77.873,1.86599398]
[1771826087841,1.80432325,77.897,77.873,1.86599398]
[1771826089143,18.19849154,77.896,77.863,1.87247063]
[1771826089349,1.80432325,77.889,77.863,1.87247063]
[1771826089961,1.80432325,77.894,77.863,1.87247063]
[1771826090138,5.36086188,77.899,77.871,1.87247063]
[1771826093654,5.36086188,77.899,77.873,1.87247063]
[1771826094255,0.2,77.9,77.873,1.87247063]
[1771826094462,6.65140669,77.907,77.891,1.87247063]
[1771826094643,0.2,77.91,77.891,1.87247063]
[1771826096061,1.80432325,77.908,77.863,3.69383402]
[1771826096230,1.80432325,77.908,77.864,1.87247063]
[1771826096938,1.80432325,77.908,77.871,1.87247063]
[1771826098542,1.80432325,77.908,77.873,1.87247063]
[1771826099554,1.80432325,77.899,77.873,1.87247063]
[1771826100753,1.80432325,77.899,77.875,1.87247063]
[1771826100938,0.2,77.91,77.88,5.07336208]
[1771826101145,0.2,77.91,77.881,1.87247063]
[1771826101346,5.36086188,77.909,77.881,1.87247063]
[1771826102436,1.80432325,77.908,77.881,1.87247063]
[1771826102957,1.80432325,77.908,77.876,12.8409266]
[1771826104157,1.80432325,77.908,77.876,1.87247063]
[1771826105353,1.80432325,77.908,77.85,51.38035263]
[1771826105354,1.80432325,77.908,77.878,1.87247063]
[1771826107752,1.80432325,77.908,77.879,12.84043195]
[1771826108061,5.36086188,77.889,77.85,1.87247063]
[1771826108251,1.80432325,77.888,77.851,1.87247063]
[1771826108936,1.80432325,77.888,77.861,1.87247063]
[1771826109338,1.80432325,77.894,77.861,1.87247063]
[1771826111156,1.80432325,77.894,77.862,12.84323546]
[1771826111458,1.80432325,77.894,77.863,1.87247063]
[1771826113953,1.80432325,77.888,77.844,1.87247063]
[1771826114156,1.80432325,77.888,77.851,1.87247063]
[1771826114358,1.80432325,77.894,77.861,1.87247063]
[1771826114663,5.36086188,77.899,77.861,1.87247063]
[1771826114967,1.80432325,77.899,77.861,1.87247063]
[1771826115263,1.80432325,77.898,77.861,1.87247063]
[1771826117067,1.80432325,77.898,77.863,1.87247063]
[1771826117455,1.80432325,77.898,77.871,1.93299806]
[1771826117772,1.91803704,77.904,77.871,1.93299806]
[1771826119372,1.91803704,77.898,77.866,1.93299806]
[1771826120266,1.91803704,77.898,77.87,5.07336208]
[1771826120452,102.6,77.91,77.881,1.93299806]
[1771826120763,1.91803704,77.909,77.871,1.93299806]
[1771826121575,1.91803704,77.909,77.873,1.93299806]
[1771826124764,1.91803704,77.909,77.875,1.93299806]
[1771826125746,1.91803704,77.907,77.875,1.93299806]
[1771826125964,1.91803704,77.898,77.868,1.93299806]
[1771826127065,1.91803704,77.897,77.87,1.93299806]
[1771826127247,1.91803704,77.904,77.871,1.93299806]
[1771826128468,1.91803704,77.904,77.873,1.93299806]
[1771826129476,1.91803704,77.904,77.874,12.84125638]
[1771826129670,1.91803704,77.904,77.875,1.93299806]
[1771826131583,6.64182277,77.908,77.891,1.93299806]
[1771826133668,6.64182277,77.908,77.892,12.83828891]
[1771826134772,6.64182277,77.908,77.893,1.93299806]
[1771826137385,6.64182277,77.908,77.894,12.83795927]
[1771826139493,0.2,77.91,77.896,12.83762966]
[1771826139678,6.64177059,77.907,77.896,14.77062772]
[1771826141385,6.64177059,77.907,77.896,12.83762966]
[1771826142288,5.36086188,77.948,77.901,1.93299806]
[1771826142583,6.64095002,77.947,77.911,1.93299806]
[1771826142886,5.36086188,77.946,77.911,1.93299806]
[1771826144172,5.36086188,77.94,77.913,1.93299806]
[1771826144373,1.91803704,77.939,77.913,1.93299806]
[1771826146006,12.8297239,77.944,77.885,1.93299806]
[1771826146007,5.36086188,77.932,77.885,1.93299806]
[1771826146292,1.91803704,77.919,77.887,1.93299806]
[1771826146497,1.91803704,77.919,77.891,1.93299806]
[1771826147082,1.91803704,77.934,77.901,1.93299806]
[1771826147277,1.91803704,77.934,77.911,1.93299806]
[1771826148303,1.91803704,77.934,77.912,1.7625779]
[1771826148506,1.8633522,77.941,77.912,1.7625779]
[1771826148678,18.18943367,77.951,77.931,1.7625779]
[1771826150511,5.2658338,77.96,77.931,1.7625779]
[1771826150512,1.8633522,77.959,77.931,1.7625779]
[1771826150802,0.2,77.96,77.941,1.7625779]
[1771826151975,1.8633522,77.959,77.935,1.7625779]
[1771826153596,1.8633522,77.958,77.935,1.7625779]
[1771826157404,12.82758443,77.957,77.935,1.7625779]
[1771826157584,1.8633522,77.949,77.929,1.7625779]
[1771826159004,1.8633522,77.949,77.93,1.7625779]
[1771826161416,1.8633522,77.949,77.926,1.7625779]
[1771826161988,1.8633522,77.939,77.915,1.7625779]
[1771826162705,1.8633522,77.929,77.904,1.7625779]
[1771826163008,1.8633522,77.929,77.904,14.59879763]
[1771826163210,1.8633522,77.929,77.905,1.7625779]
[1771826165106,1.8633522,77.929,77.906,12.83598182]
[1771826165408,1.8633522,77.929,77.906,14.59855972]
[1771826166596,1.8633522,77.929,77.907,1.7625779]
[1771826166802,1.8633522,77.927,77.907,1.7625779]
[1771826166999,1.8633522,77.919,77.896,1.7625779]
[1771826168707,1.8633522,77.919,77.897,12.83746485]
[1771826169506,5.36086188,77.929,77.898,1.7625779]
[1771826170813,5.36086188,77.929,77.9,1.7625779]
[1771826170814,12.83235807,77.928,77.9,1.7625779]
[1771826171315,12.83235807,77.928,77.901,1.7625779]
[1771826173600,12.83235807,77.928,77.903,1.7625779]
[1771826173902,14.69571027,77.928,77.903,1.7625779]
[1771826174093,1.8633522,77.927,77.903,1.7625779]
[1771826174912,1.8633522,77.949,77.911,1.7625779]
[1771826175215,1.8633522,77.949,77.91,5.0658338]
[1771826175216,1.8633522,77.949,77.921,1.7625779]
[1771826175794,1.8633522,77.949,77.923,1.7625779]
[1771826175994,1.8633522,77.947,77.923,1.7625779]
[1771826179008,1.76953933,77.938,77.911,1.92555444]
[1771826179205,1.76953933,77.938,77.913,1.92555444]
[1771826180612,12.82725535,77.959,77.931,1.92555444]
[1771826180820,0.2,78.0,77.941,1.92555444]
[1771826180821,1.76953933,77.964,77.941,1.92555444]
[1771826181409,1.76953933,77.959,77.914,44.92132351]
[1771826181618,1.76953933,77.949,77.914,44.92132351]
[1771826182616,1.76953933,77.947,77.914,44.92132351]
[1771826183508,1.76953933,77.947,77.915,1.92555444]
[1771826184816,1.76953933,77.947,77.917,1.92555444]
[1771826185023,1.76953933,77.939,77.917,1.92555444]
[1771826187320,1.76953933,77.939,77.918,12.83400497]
[1771826187517,1.76953933,77.939,77.919,1.92555444]
[1771826188420,1.76953933,77.939,77.92,14.75923]
[1771826188727,1.76953933,77.939,77.921,1.92555444]
[1771826191527,1.76953933,77.939,77.923,1.92555444]
[1771826191827,1.76953933,77.946,77.923,1.92555444]
[1771826193126,102.4,77.947,77.923,1.92555444]
[1771826193431,102.4,77.947,77.925,1.92555444]
[1771826194834,102.4,77.947,77.887,55.04974099]
[1771826194835,102.4,77.947,77.927,1.92555444]
[1771826195045,102.4,77.957,77.927,1.92555444]
[1771826195231,102.4,77.957,77.926,12.83268742]
[1771826195232,0.2,77.96,77.931,1.92555444]
[1771826196627,1.96953933,77.96,77.933,1.92555444]
[1771826198535,1.96953933,77.96,77.935,1.92555444]
[1771826200237,0.2,77.96,77.935,1.92555444]
[1771826200527,0.2,77.96,77.934,12.83137013]
[1771826200528,0.2,77.96,77.943,1.92555444]
[1771826201735,1.76953933,77.959,77.938,1.92555444]
[1771826201940,1.76953933,77.959,77.937,12.83072013]
[1771826202836,1.76953933,77.959,77.936,1.92555444]
[1771826203642,0.2,77.96,77.941,1.92555444]
[1771826203945,1.96953933,77.96,77.936,1.92555444]
[1771826204923,1.96953933,77.96,77.937,12.83087622]
[1771826208130,1.96953933,77.96,77.938,1.76565408]
[1771826210735,1.96953933,77.96,77.939,12.83054696]
[1771826210930,1e-08,77.96,77.94,5.0658338]
[1771826211125,1e-08,77.96,77.951,1.76565408]
[1771826211330,102.4,77.965,77.951,1.76565408]
[1771826212444,0.2,77.97,77.952,1.76565408]
[1771826213243,0.2,77.97,77.95,5.06228977]
[1771826213244,0.2,77.97,77.954,1.76565408]
[1771826214246,0.2,77.98,77.957,1.76565408]
[1771826214542,0.2,77.99,77.973,1.76565408]
[1771826214730,0.2,77.99,77.98,5.06228977]
[1771826214932,1.91694586,77.989,77.964,1.76565408]
[1771826215132,1.91694586,77.989,77.961,1.76565408]
[1771826215840,1.91694586,77.989,77.971,1.76565408]
[1771826216742,0.2,77.99,77.971,1.76565408]
[1771826217433,0.2,77.99,77.973,1.76565408]
[1771826218953,0.2,77.99,77.975,1.76565408]
[1771826220451,0.2,77.99,77.976,12.8244588]
[1771826220653,0.2,77.99,77.977,1.76565408]
[1771826221550,2.11694586,77.99,77.971,44.88848417]
[1771826223254,2.11694586,77.99,77.971,46.65413825]
[1771826223453,2.11694586,77.99,77.973,12.82495222]
[1771826223655,2.11694586,77.99,77.973,14.5906063]
[1771826224858,2.11694586,77.99,77.951,1.76565408]
[1771826225040,1.91694586,77.989,77.951,1.76565408]
[1771826225858,1.91694586,77.989,77.96,5.06228977]
[1771826226044,0.2,77.99,77.96,5.06228977]
[1771826226045,1.91694586,77.987,77.96,5.06228977]
[1771826226456,1.91694586,77.987,77.961,1.76565408]
[1771826226852,1.91694586,77.987,77.962,1.76565408]
[1771826228661,1.91694586,77.985,77.962,1.76565408]
[1771826230056,1.91694586,77.985,77.956,1.76565408]
[1771826230363,1.91694586,77.985,77.961,1.76565408]
[1771826230657,1.91694586,77.985,77.961,12.82692628]
[1771826231162,1.91694586,77.985,77.962,1.76565408]
[1771826234161,1.91694586,77.985,77.963,12.82659723]
[1771826234463,1.91694586,77.985,77.964,1.76565408]
[1771826235962,2.11694586,77.99,77.964,1.76565408]
[1771826236344,2.11694586,77.99,77.966,1.76565408]
[1771826241181,2.11694586,77.99,77.967,12.82593917]
[1771826243378,2.11694586,77.99,77.966,1.77808129]
[1771826245983,2.11694586,77.99,77.967,12.82593917]
[1771826246276,2.11694586,77.99,77.967,14.60402046]
[1771826249075,2.11694586,77.99,77.968,1.77808129]
[1771826251261,2.11694586,77.99,77.97,1.77808129]
[1771826251759,36.14984628,77.99,77.97,1.77808129]
[1771826253679,34.23290042,77.99,77.972,1.77808129]
[1771826255387,34.23290042,77.99,77.974,1.77808129]
[1771826255589,34.23290042,77.99,77.973,12.82495222]
[1771826255590,2.13645284,78.01,77.982,1.77808129]
[1771826255767,2.13645284,78.01,77.98,5.06228977]
[1771826255768,2.13645284,78.01,77.987,1.77808129]
[1771826256762,1.93645284,78.008,77.975,1.77808129]
[1771826256959,5.06228977,77.98,77.93,5.06228977]
[1771826257177,1.93645284,77.969,77.931,1.77808129]
[1771826258472,1.93645284,77.969,77.932,12.83169943]
[1771826258673,1.93645284,77.969,77.941,1.77808129]
[1771826259473,1.93645284,77.969,77.942,12.83005311]
[1771826259676,1.93645284,77.969,77.943,1.77808129]
[1771826260772,1.93645284,77.968,77.943,1.77808129]
[1771826261889,1.93645284,77.966,77.943,1.77808129]
[1771826262191,1.93645284,77.966,77.937,12.83079349]
[1771826262364,12.82593917,77.967,77.913,12.83482859]
[1771826262365,1.93645284,77.949,77.913,12.83482859]
[1771826262566,1.93645284,77.939,77.913,12.83482859]
[1771826263082,1.93645284,77.949,77.921,1.77808129]
[1771826264062,1.93645284,77.949,77.923,1.77808129]
[1771826269487,1.93645284,77.949,77.924,12.83301678]
[1771826269675,1.93645284,77.949,77.925,1.7893818]
[1771826271383,1.93645284,77.949,77.927,1.7893818]
[1771826272290,1.83914048,77.948,77.927,1.7893818]
[1771826275092,1.83914048,77.948,77.928,12.83235807]
[1771826275289,1.83914048,77.948,77.928,14.62173987]